Cogmind - Beta 13 @@@ ROGUE MODE // 2024.04.20 @ 11:02:16 Player: BagelsSniperWolf Result: Core destroyed Performance ------------- Evolutions (2) 1000 Regions Visited (3) 600 Robots Destroyed (23) 115 Value Destroyed (817) 817 Prototype IDs (0) 0 Alien Tech Used (0) 0 Bonus (200) 200 TOTAL SCORE: 2732 Bonus ------- Pacifist 200 Cogmind --------- Core Integrity 0/550 Matter 124/300 Energy 35/100 System Corruption 0% Temperature Critical (847) Movement Core (200) Ox3 Location -8/Materials Parts ------- > --- POWER (2) -------- (None) > --- PROPULSION (2) --- (None) > --- UTILITY (4) ------ Advanced Weight Redist. System Improved Sensor Array Improved Signal Interpreter System Shield > --- WEAPON (3) ------- Beam Rifle Heavy Laser Heavy Laser > --- INVENTORY (5) ---- (None) Peak State ------------ > --- POWER ------------ Improved Ion Engine Nuclear Core > --- PROPULSION ------- Aluminum Leg Carbon-fiber Leg > --- UTILITY ---------- Advanced Weight Redist. System Improved Sensor Array Improved Signal Interpreter System Shield > --- WEAPON ----------- Heavy Laser Heavy Laser Minigun > --- INVENTORY -------- Ion Engine Beam Rifle Heavy Laser Heavy Laser [Rating: 33] Favorites ----------- Power Ion Engine Engine Ion Engine Power Core Nuclear Core Propulsion Aluminum Leg Leg Aluminum Leg Wheel Compact Wheel Utility Small Storage Unit Device ECM Suite Storage Small Storage Unit Processor Improved Signal Interpreter Hackware System Shield Protection Backup Plating I Weapon Minigun Energy Gun Heavy Laser Energy Cannon Ion Cannon Ballistic Gun Minigun Launcher Rocket Launcher Build | -11 -10 -9 -8 ------- Run | Yrd Mat Mat Mat Slots Evolved 4 | . . 2 2 Power 1 | . . 1 . Propulsion . | . . . . Utility 2 | . . 1 1 Weapon 1 | . . . 1 Parts Attached 42 | 4 3 21 14 Power 7 | 1 1 3 2 Engine 6 | 1 1 3 1 Core 1 | . . . 1 Reactor . | . . . . Propulsion 9 | 2 . 6 1 Treads . | . . . . Leg 7 | . . 6 1 Wheel 2 | 2 . . . Hover . | . . . . Flight . | . . . . Utility 7 | 1 . 2 4 Device 4 | . . 2 2 Storage 1 | 1 . . . Processor 1 | . . . 1 Hackware 1 | . . . 1 Protection . | . . . . Artifact . | . . . . Weapon 19 | . 2 10 7 Energy Gun 8 | . 1 1 6 Energy Cannon 2 | . . 2 . Ballistic Gun 8 | . 1 6 1 Ballistic Cannon . | . . . . Launcher 1 | . . 1 . Special Weapon . | . . . . Impact Weapon . | . . . . Slashing Weapon . | . . . . Piercing Weapon . | . . . . Special Melee Weapon . | . . . . Unidentified Prototypes . | . . . . Parts Lost 23 | . . 15 8 Power 7 | . . 4 3 Propulsion 6 | . . 4 2 Utility 3 | . . 3 . Weapon 7 | . . 4 3 Highest Loss Streak 8 | . . 8 8 To Critical Strikes . | . . . . Average Slot Usage (%) 78 | . 98 76 77 Engine 14 | . 14 14 15 Leg 14 | . . 15 17 Wheel 5 | . 28 5 . Device 7 | . . 9 6 Storage 6 | . 14 9 . Processor 1 | . . . 4 Hackware 1 | . . . 4 Protection 2 | . 12 3 . Energy Gun 8 | . 14 1 18 Energy Cannon 2 | . . 3 . Ballistic Gun 11 | . 14 12 8 Naked Turns . | . . . . Heaviest Build 26 | 8 13 25 26 Greatest Support 34 | 26 26 26 34 Greatest Overweight (x) 6 | . . 6 1 Average Overweight (x) . | . . . . Largest Inventory Capacity 8 | 8 8 8 5 Average Capacity 6 | 7 8 7 5 Most Carried 7 | 6 7 6 5 Average Carried 2 | 2 5 2 2 Final Capacity 8 | 8 8 5 5 Final Carried 6 | 6 5 2 . Class Distribution -------------------- 59% | Mutant 20% | Scavenger-Skirmisher 12% | Scavenger-Gunner 7% | Scavenger-Mutant Dominant Class ---------------- Mutant | -10/Materials Mutant | -9/Materials Scavenger-Skirmisher | -8/Materials Resources | -11 -10 -9 -8 ----------- Run | Yrd Mat Mat Mat Matter Collected 874 | 231 39 532 72 Remotely . | . . . . Salvage Created 903 | . . 750 153 Parts 47 | . . 38 9 Haulers Intercepted . | . . . . Recyclers Shooed . | . . . . Parts Field Recycled . | . . . . Retrieved Matter . | . . . . Parts Self-Destructed . | . . . . Prevented . | . . . . Kills | -11 -10 -9 -8 ------- Run | Yrd Mat Mat Mat Combat Hostiles Destroyed 19 | . . 17 2 Guns 14 | . . 12 2 Cannons 4 | . . 4 . AOE 1 | . . 1 . Classes Destroyed 5 | . . 3 2 Worker 1 | . . . 1 Watcher 3 | . . 2 1 Grunt 15 | . . 14 1 Sentry 3 | . . 3 . Hunter 1 | . . . 1 Best Kill Streak 4 | . . 4 2 Combat Bots Only 4 | . . 4 1 Max Kills in Single Turn 2 | . . 2 1 Gunslinging . | . . . . Exploded 1 | . . 1 . Melee . | . . . . Uniques/NPCs Destroyed . | . . . . Combat | -11 -10 -9 -8 -------- Run | Yrd Mat Mat Mat Hostile Shots Fired 244 | . . 165 79 Missed 46 | . . 35 11 Damage Taken 3282 | . . 1802 1480 Core 898 | . . 306 592 Absorbed by Shields . | . . . . Core Remaining (%) 74 | 100 100 23 . Volleys Fired 101 | . . 80 21 Largest 3 | . . 2 3 Hottest 163 | . . 85 163 Shots Fired 152 | . . 102 50 Gun 134 | . . 84 50 Cannon 15 | . . 15 . Launcher 3 | . . 3 . Special . | . . . . Kinetic 98 | . . 84 14 Thermal 51 | . . 15 36 Explosive 3 | . . 3 . Electromagnetic . | . . . . Robot Hit Streak 26 | . . 26 4 Robot Miss Streak 4 | . . 4 4 Penetration Max . | . . . . Secondary Targets 1 | . . . 1 Max Gunslinging Chain 1 | . . . 1 Shots Hit Robots 94 | . . 69 25 Core Hits 36 | . . 26 10 Critical Kills . | . . . . Critical Parts Destroyed . | . . . . Critical Strikes 1 | . . 1 . Destroy 1 | . . 1 . Melee Attacks . | . . . . Impact . | . . . . Slashing . | . . . . Piercing . | . . . . Sneak Attacks . | . . . . Combat Hostiles . | . . . . Follow-up Attacks . | . . . . Damage Inflicted 1864 | . . 1380 484 Guns 1497 | . . 1013 484 Cannons 249 | . . 249 . Explosions 118 | . . 118 . Melee . | . . . . Ramming . | . . . . Kinetic 1104 | . . 1013 91 Thermal 642 | . . 249 393 Explosive 118 | . . 118 . Electromagnetic . | . . . . Impact . | . . . . Slashing . | . . . . Piercing . | . . . . Highest Corruption . | . . . . Average Corruption . | . . . . Corruption Purged . | . . . . Corruption Blocked . | . . . . Overload Shots . | . . . . Overflow Damage . | . . . . Projectiles . | . . . . Explosions . | . . . . Melee . | . . . . Knockbacks . | . . . . Impact . | . . . . Kinetic . | . . . . Secondary . | . . . . Self-Inflicted Damage 30 | . . 30 . Shots 1 | . . 1 . Rammed . | . . . . Targets Rammed . | . . . . Kicked . | . . . . Crushed . | . . . . Highest Temperature 847 | . . 429 847 Average Temperature 192 | . . 144 255 Received Heat Transfer 1491 | . . 897 594 Effects 27 | . . 6 21 Shutdowns 5 | . . 2 3 Interference 8 | . . 1 7 Matter Decay 5 | . . 2 3 Short Circuit 3 | . . 1 2 Damage (minor) 2 | . . . 2 Damage (core) 4 | . . . 4 Siege Activations . | . . . . Robots Corrupted . | . . . . Combat Hostiles . | . . . . Parts Fried . | . . . . Impact Corruptions . | . . . . Robots Melted . | . . . . Combat Hostiles . | . . . . Parts Melted 1 | . . . 1 Heat Transferred 1184 | . . 370 814 Parts Sabotaged . | . . . . Parts Stolen . | . . . . Parts Stripped . | . . . . Power Chain Reactions . | . . . . Alert | -11 -10 -9 -8 ------- Run | Yrd Mat Mat Mat Peak Influence 232 | . 4 232 230 Initial 92 | . . 1 92 Average 111 | . 1 123 133 Maximum Alert Level 1 | . . 1 1 Low Security (%) 88 | 100 100 85 89 Level 1 11 | . . 14 10 Level 2 . | . . . . Level 3 . | . . . . Level 4 . | . . . . Level 5 . | . . . . High Security . | . . . . Max Security . | . . . . Squads Dispatched 7 | . . 4 3 Investigation 4 | . . 2 2 Extermination . | . . . . Reinforcement 3 | . . 2 1 Assault . | . . . . Garrison . | . . . . Intercept . | . . . . Searches Triggered . | . . . . Construction Impeded . | . . . . Haulers Reinforced . | . . . . Active Scanning Responses . | . . . . Cargo Convoy Interrupts . | . . . . Stealth | -11 -10 -9 -8 --------- Run | Yrd Mat Mat Mat Distress Signals 2 | . . 2 . Communications Jammed . | . . . . Distress Signals . | . . . . Times Spotted 40 | . 1 27 12 Peak Tracking Total 9 | . 1 7 9 Tactical Retreats 6 | . . 4 2 Traps | -11 -10 -9 -8 ------- Run | Yrd Mat Mat Mat Traps Triggered 1 | . . . 1 Indirectly . | . . . . Trap Hack Attempts . | . . . . Triggered . | . . . . Disarmed . | . . . . Reprogrammed . | . . . . Reused . | . . . . Traps Extracted . | . . . . Installed . | . . . . Triggered . | . . . . Machines | -11 -10 -9 -8 ---------- Run | Yrd Mat Mat Mat Machines Disabled 2 | . . 2 . Max in Single Turn 1 | . . 1 . Machines Repaired . | . . . . Machines Dismantled . | . . . . Machines Sabotaged . | . . . . Overloaded Fab Kills . | . . . . Hacking | -11 -10 -9 -8 --------- Run | Yrd Mat Mat Mat Machines Accessed 8 | . 2 4 2 Terminals 5 | . 1 2 2 Fabricators . | . . . . Repair Stations 3 | . 1 2 . Recycling Units . | . . . . Scanalyzers . | . . . . Garrison Access . | . . . . Total Hacks 24 | . 3 11 10 Successful 13 | . 2 5 6 Failed 11 | . 1 6 4 Catastrophic 3 | . . 2 1 Database Lockouts . | . . . . Manual 4 | . 1 . 3 Terminals 18 | . 2 6 10 Fabricators . | . . . . Repair Stations 6 | . 1 5 . Recycling Units . | . . . . Scanalyzers . | . . . . Garrison Access . | . . . . Terminal Hacks 10 | . 1 3 6 Record 5 | . . 2 3 Robot Analysis 1 | . 1 . . Locate Traps 1 | . . . 1 Recall Investigation 1 | . . . 1 Zone Layout 2 | . . 1 1 Fabricator Hacks . | . . . . Repair Station Hacks 3 | . 1 2 . Scan Component 1 | . . 1 . Refit 2 | . 1 1 . Recycling Unit Hacks . | . . . . Scanalyzer . | . . . . Garrison Access Hacks . | . . . . Unauthorized Hacks . | . . . . Terminals . | . . . . Fabricators . | . . . . Repair Stations . | . . . . Recycling Units . | . . . . Scanalyzers . | . . . . Garrison Access . | . . . . Data Cores Recovered . | . . . . Used . | . . . . Hacking Detections 7 | . 1 4 2 Full Trace Events 3 | . . 2 1 Feedback Events . | . . . . Feedback Blocked . | . . . . Robot Schematics Acquired . | . . . . Robots Built . | . . . . Authchips . | . . . . Time . | . . . . Total Robot Build Rating . | . . . . Part Schematics Acquired . | . . . . Parts Built . | . . . . Authchips . | . . . . Time . | . . . . Total Part Build Rating . | . . . . Parts Repaired . | . . . . Time . | . . . . Parts Recycled . | . . . . Recycled Matter . | . . . . Retrieved Matter . | . . . . Retrieved Components . | . . . . Parts Scanalyzed . | . . . . Part Schematics Acquired . | . . . . Parts Damaged . | . . . . Bothacking | -11 -10 -9 -8 ------------ Run | Yrd Mat Mat Mat Used RIF Installer . | . . . . Robots Hacked . | . . . . Non-combat . | . . . . Combat . | . . . . Robot Hacks Applied . | . . . . Relay Couplers Released . | . . . . Fabnet Peak Effective % . | . . . . Robots Rewired . | . . . . Allies Hacked . | . . . . Hacks Repelled . | . . . . Allies | -11 -10 -9 -8 -------- Run | Yrd Mat Mat Mat Total Allies . | . . . . Largest Group . | . . . . Highest-Rated Group . | . . . . Highest-Rated Ally . | . . . . Total Orders . | . . . . Ally Attacks . | . . . . Total Damage . | . . . . Kills . | . . . . Allies Corrupted . | . . . . Allies Melted . | . . . . Intel | -11 -10 -9 -8 ------- Run | Yrd Mat Mat Mat Robot Analysis Total 1 | . 1 . . Derelict Logs Recovered . | . . . . Drone Launches . | . . . . Drone Recoveries . | . . . . Exploration | -11 -10 -9 -8 ------------- Run | Yrd Mat Mat Mat Turns Passed 1186 | 41 112 619 414 Spaces Moved 650 | 31 118 279 222 Core 6 | 1 . 5 . Treads . | . . . . Legs 397 | . . 175 222 Wheels 247 | 30 118 99 . Hover . | . . . . Flight . | . . . . Fastest Speed 50 | 50 90 90 120 Average Speed 122 | 88 90 121 144 Slowest Speed 350 | 90 90 350 190 Overloaded Moves . | . . . . Propulsion Burnouts . | . . . . Robots Hopped . | . . . . Cave-ins Triggered . | . . . . Exploration Rate (%) 18 | 3 25 23 23 Regions Visited 3 Branch Regions . Pre-discovered Areas . | . . . . Known Exits Taken . | . . . . Unknown Exits Taken 3 | 1 1 1 . Scrap Searched . | . . . . Spaces Dug . | . . . . Terrain Destroyed 18 | . . 18 . Melee . | . . . . Projectile 2 | . . 2 . AOE 16 | . . 16 . Terrain Rammed . | . . . . Walls Destroyed . | . . . . Machines Disabled . | . . . . Actions | -11 -10 -9 -8 --------- Run | Yrd Mat Mat Mat Total 919 | 44 123 472 280 Wait 74 | . . 65 9 Move 647 | 30 117 278 222 Hop . | . . . . Pick Up 39 | 10 2 18 9 Fast Attach . | . . . . Attach 35 | 4 2 19 10 Detach 2 | . . 1 1 Swap 7 | . 1 2 4 Drop 14 | . 1 9 4 Fire 101 | . . 80 21 Melee . | . . . . Ram . | . . . . Kick . | . . . . Crush . | . . . . Escape Stasis . | . . . . Rewire . | . . . . Trap . | . . . . Miscellaneous . | . . . . Route ------- -11/Scrapyard -10/Materials -9/Materials -8/Materials History --------- Turn | Location | Event 25 | -11/Scrapyard | Discovered new exit (range 15) 42 | -11/Scrapyard | Entered Materials 148 | -10/Materials | Discovered new exit (range 6) 154 | -10/Materials | Entered another Materials area 154 | -9/Materials | Evolved 2 slots: Power x1, Utility x1 300 | -9/Materials | Build established: Mutant 397 | -9/Materials | Core integrity fell below 50% 421 | -9/Materials | Lost 8 parts (1p4n1u2w) 733 | -9/Materials | Lost 4 parts (1p2u1w) 749 | -9/Materials | Discovered new exit (range 16) 773 | -9/Materials | Entered another Materials area 773 | -8/Materials | Evolved 2 slots: Utility x1, Weapon x1 1175 | -8/Materials | Core integrity fell below 50% 1177 | -8/Materials | Core integrity fell below 20% 1188 | -8/Materials | Core destroyed Last Messages --------------- Critical hit (Burn: +37). Hvy. Laser destroyed. Overheating: Matter decay (-20). Overheating: Core damaged (-110). Aluminum Leg destroyed. Imp. Ion Engine destroyed. Carbon-fiber Leg destroyed. Broken Ion Engine destroyed. Destroyed Lgt. Nuclear Core. Hvy. Laser destroyed. Overheating: Matter decay (-21). Hvy. Laser broken. Overheating: Short circuit. R-06 Scavenger collects Wheel. Overheating: System interference. Hvy. Laser temporarily disabled. Overheating: Broken Hvy. Laser damaged (-11). Overheating: Broken Hvy. Laser damaged (-10). R-06 Scavenger collects Lgt. Ion Engine. Overheating: Core damaged (-77). Map ----- +----------------------------------------------------+ | ##### +????????????????????????????????????????? | | #????????????????????????????????????????? | | #????????????????????????????????????????? | | #????????????????????????????????????????? | | #????????????????????????????????????????? | | #????????????????????????????????????????? | | #????????????????????????????????????????? | | T""" +????????????????????????????????????????? | | ##### #????????????????????????????????????????? | | ???## #????????????????????????????????????????? | | ???## #????????????????????????????????????????? | | ???## #????????????????????????????????????????? | | ????# #????????????????????????????????????????? | | ##### % #????????????????????????????????????????? | | ########?????????????????????????????????? | | ] #?????????????????????????????????? | | #?????????????????????????????????? | | #?????????????????????????????????? | | #?????????????????????????????????? | | """ """ #?????????????????????????????????? | | """ """ #???????????????????????? #???????? | | """ """ #????????????????????? #????????? | | #################### ###??????? | | r%! g w ! g ????? | | =% w% g T ?????? | | [ @! gYkk ????? | | ########################## ###+?????? | | ####### #???????????????????????????? ##????????? | | ??????# ???????????????????????????????#?????????? | | ??????# ?????????????????????????????????????????? | | ??????#??????????????????????????????????????????? | | ?????????????????????????????????????????????????? | | ?????????????????????????????????????????????????? | | ?????????????????????????????????????????????????? | | ?????????????????????????????????????????????????? | | ?????????????????????????????????????????????????? | | ?????????????????????????????????????????????????? | | ?????????????????????????????????????????????????? | | ?????????????????????????????????????????????????? | | ?????????????????????????????????????????????????? | | ?????????????????????????????????????????????????? | | ?????????????????????????????????????????????????? | | ?????????????????????????????????????????????????? | | ?????????????????????????????????????????????????? | | ?????????????????????????????????????????????????? | | ?????????????????????????????????????????????????? | | ?????????????????????????????????????????????????? | | ?????????????????????????????????????????????????? | | ?????????????????????????????????????????????????? | | ?????????????????????????????????????????????????? | +----------------------------------------------------+ Best States ------------- Heat Dissipation 31 Energy Generation 21 Energy Capacity 415 Matter Stores 300 Matter Capacity 300 Sight Range 16 Robot Scan Range 15 Terrain Scan Density 10 ECM Strength 1 Additional Mass Support 9 Armor Coverage 80 Evasion (%) 55 Defensive Hacking 10 Item Schematics ----------------- None Robot Schematics ------------------ None Fabricated ------------ Nothing Alien Tech Used ----------------- None Achievements -------------- I Spy Challenges ------------ None Game ------ Seed ReflectiveTargetCanceller Manual? 0 Play Time 00:25:59 Cumulative 9.4 hours Start 2024.04.20 @ 10:33:42 End 2024.04.20 @ 11:02:16 Sessions 1 Manual Loads 0 Difficulty Rogue Special Mode None Game No. 15 Rogue 15 Adventurer 0 Explorer 0 Win Type - Total 0 Types 0/0/0/0/0/0/0/0/0 Lore% 7 Gallery% 13 Achievement% 13 Wizard Run 0 Options --------- Layout 0 ASCII 0 Keyboard 0 Movement Mouse Keybinds 0 Fullscreen 1 Font 18/SmallcapsGlow Map View 76x50 Zoom Use 0% Tactical HUD 0 Map Filters NONE Filters NONE Steam 1 RUN: 27dc9908-cf07-4d6c-a4a7-201107712115